Workbook

Sheet 4. Budget Modification (6) (hidden)
A4: Original Budget
C5: Duration (n. of months) | D5: N of staff | E5: LOE | F5: Salary/Rate | G5: Total | H5: Total
A8: Personnel
A9: 1.1 | B9: Senior Programme manager | C9: 6 | D9: 1 | E9: 30% | F9: 4,000 | G9: =F9*E9*D9*C9 -> 7,200 | H9: 9,200
A10: 1.2 | B10: Finance Manageer | C10: 6 | D10: 1 | E10: 25% | F10: 3,500 | G10: =F10*E10*D10*C10 -> 5,250 | H10: 5,250
A11: 1.3 | B11: MEL Manager | C11: 6 | D11: 1 | E11: 25% | F11: 3,500 | G11: =F11*E11*D11*C11 -> 5,250 | H11: 5,250
A12: 1.4 | B12: Trainer | C12: 6 | D12: 2 | E12: 100% | F12: 3,000 | G12: =F12*E12*D12*C12 -> 36,000 | H12: 36,000
A14: Sub-Total Personnel | G14: =SUM(G9:G12) -> 53,700 | H14: =SUM(H9:H13) -> 55,700
A17: Activities | C17: Unit Description | E17: No of Units | F17: Cost per Unit | G17: Total
A18: 2.1 | B18: Training | C18: training | E18: 10 | F18: =G18/E18 -> 6,500 | G18: 65,000 | H18: 63,000
A19: 2.2 | B19: Stakeholder Meeting | C19: meeting | E19: 6 | F19: =G19/E19 -> 1,500 | G19: 9,000 | H19: 9,000
A20: 2.3 | B20: Distribution of Supplies | C20: distribution round | E20: 5 | F20: 5,000 | G20: 25,000 | H20: 25,000
A21: 2.4 | B21: Beneficiaries surveys | C21: survey | E21: 2 | F21: 2,500 | G21: 5,000 | H21: 5,000
A22: 2.5 | B22: Conferences and events | C22: lump sum | E22: 1 | F22: 5,000 | G22: 5,000 | H22: 5,000
A23: 2.6 | B23: Communication | C23: lump sum | E23: 1 | F23: 2,500 | G23: 2,500 | H23: 2,500
A24: Sub-Total Activities | G24: =SUM(G18:G23) -> 111,500 | H24: =SUM(H18:H23) -> 109,500
G25: =G14+G24 -> 165,200 | H25: =H14+H24 -> 165,200

Sheet 4. Budget Modification (5) (hidden)
A4: Original Budget
C5: Duration (n. of months) | D5: N of staff | E5: LOE | F5: Salary/Rate | G5: Total | H5: Total
A6: Personnel
A7: 1.1 | B7: Senior Programme manager | C7: 6 | D7: 1 | E7: 30% | F7: 4,000 | G7: =F7*E7*D7*C7 -> 7,200 | H7: 9,200
A8: 1.2 | B8: Finance Manageer | C8: 6 | D8: 1 | E8: 25% | F8: 3,500 | G8: =F8*E8*D8*C8 -> 5,250 | H8: 5,250
A9: 1.3 | B9: MEL Manager | C9: 6 | D9: 1 | E9: 25% | F9: 3,500 | G9: =F9*E9*D9*C9 -> 5,250 | H9: 5,250
A10: 1.4 | B10: Trainer | C10: 6 | D10: 2 | E10: 100% | F10: 3,000 | G10: =F10*E10*D10*C10 -> 36,000 | H10: 34,000
A12: Sub-Total Personnel | G12: =SUM(G7:G10) -> 53,700 | H12: =SUM(H7:H11) -> 53,700
A15: Activities | C15: Unit Description | E15: No of Units | F15: Cost per Unit | G15: Total
A16: 2.1 | B16: Training | C16: training | E16: 10 | F16: =G16/E16 -> 6,500 | G16: 65,000 | H16: 58,000
A17: 2.2 | B17: Stakeholder Meeting | C17: meeting | E17: 6 | F17: =G17/E17 -> 1,500 | G17: 9,000 | H17: 15,000
A18: 2.3 | B18: Distribution of Supplies | C18: distribution round | E18: 5 | F18: 5,000 | G18: 25,000 | H18: 20,000
A19: 2.4 | B19: Beneficiaries surveys | C19: survey | E19: 2 | F19: 2,500 | G19: 5,000 | H19: 6,000
A20: 2.5 | B20: Conferences and events | C20: lump sum | E20: 1 | F20: 5,000 | G20: 5,000 | H20: 7,000
A21: 2.6 | B21: Communication | C21: lump sum | E21: 1 | F21: 2,500 | G21: 2,500 | H21: 5,500
A22: Sub-Total Activities | G22: =SUM(G16:G21) -> 111,500 | H22: =SUM(H16:H21) -> 111,500
G23: =G12+G22 -> 165,200 | H23: =H12+H22 -> 165,200

Sheet 4. Budget Modification (4) (hidden)
A4: Original Budget | L4: Modification Budget
C5: Duration (n. of months) | D5: N of staff | E5: LOE | F5: Salary/Rate | G5: Total | I5: Expenditure to date | J5: Budget balance | N5: Duration (n. of months) | O5: N of staff | P5: LOE | Q5: Salary/Rate | R5: Total
A8: Personnel | L8: Personnel
A9: 1.1 | B9: Senior Programme manager | C9: 6 | D9: 1 | E9: 30% | F9: 4,000 | G9: =F9*E9*D9*C9 -> 7,200 | I9: =G9/2 -> 3,600 | J9: =G9-I9 -> 3,600 | L9: 1.1 | M9: Senior Programme manager | N9: 3 | O9: 1 | P9: 40% | Q9: 4,000 | R9: =N9*O9*P9*Q9 -> 4,800
A10: 1.2 | B10: Finance Manageer | C10: 6 | D10: 1 | E10: 25% | F10: 3,500 | G10: =F10*E10*D10*C10 -> 5,250 | I10: =G10/2 -> 2,625 | J10: =G10-I10 -> 2,625 | L10: 1.2 | M10: Finance Manageer | N10: 3 | O10: 1 | P10: 35% | Q10: 3,500 | R10: 3,675
A11: 1.3 | B11: MEL Manager | C11: 6 | D11: 1 | E11: 25% | F11: 3,500 | G11: 5,250 | I11: 2,625 | J11: 2,625 | L11: 1.3 | M11: MEL Manager | N11: 3 | O11: 1 | P11: 32% | Q11: 3,500 | R11: 3,375
A12: 1.4 | B12: Trainer | C12: 6 | D12: 2 | E12: 100% | F12: 3,000 | G12: 36,000 | I12: =F12*5 -> 15,000 | J12: 21,000 | L12: 1.4 | M12: Trainer 1 | N12: 3 | O12: 1 | P12: 100% | Q12: 3,000 | R12: 9,000
L13: 1.5 | M13: Trainer 2 | N13: 3 | O13: 1 | P13: 100% | Q13: 3,000 | R13: 9,000
L14: 1.6 | M14: Staff 6 | N14: 3 | O14: 1 | P14: 100% | Q14: 3,000 | R14: 9,000
L15: 1.7 | M15: Staff 7 | N15: 3 | O15: 1 | P15: 100% | Q15: 3,000 | R15: 9,000
A16: Sub-Total Personnel | G16: =SUM(G9:G12) -> 53,700 | I16: =SUM(I9:I13) -> 23,850 | J16: =SUM(J9:J13) -> 29,850 | L16: Sub-Total Personnel | R16: =SUM(R9:R15) -> 47,850 | S16: =R16-J16 -> 18,000
A19: Activities | C19: Unit Description | E19: No of Units | F19: Cost per Unit | G19: Total | L19: Activities | N19: Unit Description | P19: No of Units | Q19: Cost per Unit | R19: Total
A20: 2.1 | B20: Training | C20: training | E20: 10 | F20: =G20/E20 -> 6,500 | G20: 65,000 | I20: =F20*5 -> 32,500 | J20: =G20-I20 -> 32,500 | L20: 2.1 | M20: Training | N20: training | P20: 5 | Q20: 6,000 | R20: =P20*Q20 -> 30,000
A21: 2.2 | B21: Stakeholder Meeting | C21: meeting | E21: 6 | F21: =G21/E21 -> 1,500 | G21: 9,000 | I21: =F21*3 -> 4,500 | J21: =G21-I21 -> 4,500 | L21: 2.2 | M21: Stakeholder Meeting | N21: meeting | P21: 3 | Q21: 1,500 | R21: 4,500
A22: 2.3 | B22: Distribution of Supplies | C22: distribution round | E22: 5 | F22: 5,000 | G22: 25,000 | I22: =6000*2 -> 12,000 | J22: 13,000 | L22: 2.3 | M22: Distribution of Supplies | N22: distribution round | P22: 3 | Q22: 6,000 | R22: 18,000
A23: 2.4 | B23: Beneficiaries surveys | C23: survey | E23: 2 | F23: 2,500 | G23: 5,000 | I23: =1*2500 -> 2,500 | J23: 2,500 | L23: 2.4 | M23: Beneficiaries surveys | N23: survey | P23: 1 | Q23: 2,500 | R23: 2,500
A24: 2.5 | B24: Conferences and events | C24: lump sum | E24: 1 | F24: 5,000 | G24: 5,000 | I24: 1,200 | J24: 3,800 | L24: 2.5 | M24: Conferences and events | N24: event | P24: 4 | Q24: 1,000 | R24: 4,000
A25: 2.6 | B25: Communication | C25: lump sum | E25: 1 | F25: 2,500 | G25: 2,500 | I25: 500 | J25: 2,000 | L25: 2.6 | M25: Communication | N25: lump sum | P25: 1 | Q25: 800 | R25: 800
L26: 2.7 | M26: Activity 7 | N26: activity | P26: 1 | Q26: 6,000 | R26: =Q26*P26 -> 6,000
L27: 2.8 | M27: Activity 8 | N27: activity | P27: 1 | Q27: 8,000 | R27: =Q27*P27 -> 8,000
A28: Sub-Total Activities | G28: =SUM(G20:G25) -> 111,500 | I28: =SUM(I20:I25) -> 53,200 | J28: =SUM(J20:J25) -> 58,300 | L28: Sub-Total Activities | R28: =SUM(R20:R27) -> 73,800 | S28: =R28-J28 -> 15,500
G29: =G16+G28 -> 165,200 | I29: =I28+I16 -> 77,050 | J29: =J28+J16 -> 88,150 | R29: =R28+R16 -> 121,650 | S29: =R29-J29 -> 33,500

Sheet 4. Budget Modification (3) (hidden)
A4: Original Budget | L4: Modification Budget
C5: Duration (n. of months) | D5: N of staff | E5: LOE | F5: Salary/Rate | G5: Total | I5: Expenditure to date | J5: Budget balance | N5: Duration (n. of months) | O5: N of staff | P5: LOE | Q5: Salary/Rate | R5: Total
A8: Personnel | L8: Personnel
A9: 1.1 | B9: Senior Programme manager | C9: 6 | D9: 1 | E9: 30% | F9: 4,000 | G9: =F9*E9*D9*C9 -> 7,200 | I9: =G9/2 -> 3,600 | J9: =G9-I9 -> 3,600 | L9: 1.1 | M9: Senior Programme manager | N9: 3 | O9: 1 | P9: 40% | Q9: 4,000 | R9: =N9*O9*P9*Q9 -> 4,800
A10: 1.2 | B10: Finance Manageer | C10: 6 | D10: 1 | E10: 25% | F10: 3,500 | G10: =F10*E10*D10*C10 -> 5,250 | I10: =G10/2 -> 2,625 | J10: =G10-I10 -> 2,625 | L10: 1.2 | M10: Finance Manageer | N10: 3 | O10: 1 | P10: 35% | Q10: 3,500 | R10: =N10*O10*P10*Q10 -> 3,675
A11: 1.3 | B11: MEL Manager | C11: 6 | D11: 1 | E11: 25% | F11: 3,500 | G11: 5,250 | I11: 2,625 | J11: 2,625 | L11: 1.3 | M11: MEL Manager | N11: 3 | O11: 1 | P11: 32% | Q11: 3,500 | R11: =N11*O11*P11*Q11 -> 3,375
A12: 1.4 | B12: Trainer | C12: 6 | D12: 2 | E12: 100% | F12: 3,000 | G12: 36,000 | I12: =F12*5 -> 15,000 | J12: 21,000 | L12: 1.4 | M12: Trainer 1 | N12: 3 | O12: 1 | P12: 100% | Q12: 3,000 | R12: =N12*O12*P12*Q12 -> 9,000
L13: 1.5 | M13: Trainer 2 | N13: 3 | O13: 1 | P13: 100% | Q13: 3,000 | R13: =N13*O13*P13*Q13 -> 9,000
A14: Sub-Total Personnel | G14: =SUM(G9:G12) -> 53,700 | I14: =SUM(I9:I13) -> 23,850 | J14: =SUM(J9:J13) -> 29,850 | L14: Sub-Total Personnel | R14: =SUM(R9:R13) -> 29,850
A17: Activities | C17: Unit Description | E17: No of Units | F17: Cost per Unit | G17: Total | L17: Activities | N17: Unit Description | P17: No of Units | Q17: Cost per Unit | R17: Total
A18: 2.1 | B18: Training | C18: training | E18: 10 | F18: =G18/E18 -> 6,500 | G18: 65,000 | I18: =F18*5 -> 32,500 | J18: =G18-I18 -> 32,500 | L18: 2.1 | M18: Training | N18: training | P18: 5 | Q18: 6,000 | R18: =P18*Q18 -> 30,000
A19: 2.2 | B19: Stakeholder Meeting | C19: meeting | E19: 6 | F19: =G19/E19 -> 1,500 | G19: 9,000 | I19: =F19*3 -> 4,500 | J19: =G19-I19 -> 4,500 | L19: 2.2 | M19: Stakeholder Meeting | N19: meeting | P19: 3 | Q19: 1,500 | R19: 4,500
A20: 2.3 | B20: Distribution of Supplies | C20: distribution round | E20: 5 | F20: 5,000 | G20: 25,000 | I20: =6000*2 -> 12,000 | J20: 13,000 | L20: 2.3 | M20: Distribution of Supplies | N20: distribution round | P20: 3 | Q20: 6,000 | R20: 18,000
A21: 2.4 | B21: Beneficiaries surveys | C21: survey | E21: 2 | F21: 2,500 | G21: 5,000 | I21: =1*2500 -> 2,500 | J21: 2,500 | L21: 2.4 | M21: Beneficiaries surveys | N21: survey | P21: 1 | Q21: 2,500 | R21: 2,500
A22: 2.5 | B22: Conferences and events | C22: lump sum | E22: 1 | F22: 5,000 | G22: 5,000 | I22: 1,200 | J22: 3,800 | L22: 2.5 | M22: Conferences and events | N22: event | P22: 4 | Q22: 600 | R22: 2,400
A23: 2.6 | B23: Communication | C23: lump sum | E23: 1 | F23: 2,500 | G23: 2,500 | I23: 500 | J23: 2,000 | L23: 2.6 | M23: Communication | N23: lump sum | P23: 1 | Q23: 900 | R23: 900
A24: Sub-Total Activities | G24: =SUM(G18:G23) -> 111,500 | I24: =SUM(I18:I23) -> 53,200 | J24: =SUM(J18:J23) -> 58,300 | L24: Sub-Total Activities | R24: =SUM(R18:R23) -> 58,300
G25: =G14+G24 -> 165,200 | I25: =I24+I14 -> 77,050 | J25: =J24+J14 -> 88,150 | R25: =R24+R14 -> 88,150

Sheet Instructions
A2: Guidance on Budget Form
A3: 1. Detailed Budget - Main budget categories / 1. Детальний бюджет - Основні бюджетні категорії
A5: 1. Personnel (Labour) - Insert the full name and position title for each staff member. In the units column, specify the anticipated number of months (days) for each position. Budget Notes: Please provide an explanation of the position (roles and responsibilities) and justification of the LoE allocated to the position. / 1. Персонал - Введіть повне ім'я та назву посади для кожного співробітника. У колонці Одиниці виміру вкажіть очікувану кількість днів (місяців) залучення для кожної посади. Примітки до бюджету: Будь ласка, надайте пояснення щодо посади (ролі та обов'язків) та обґрунтування залученності, виділених для цієї посади.
A7: 2. Activity costs - Include costs specific to a programmatic milestone/activity. For example, all expenses related to hosting a workshop, or collecting surveys should be detailed. Provide the name of the activity and add additional lines for each different activity. Illustrative cost types in this category include: venue rental, refreshments, transportation, supplies, equipment rental, etc. In the units column, enter the number of units. In the rate column, specify the rate per unit, which should represent the best estimate you can provide. Budget Notes: Please explain costs listed under each activity in detailed budget notes, including details on the number of participants and the nature of and rationale for the costs. The notes must also explain how the unit costs have been determined (e.g. based on local bench marking, quotes from providers, or recent experience of similar activities). / 2. Витрати за активностями - включіть витрати, що стосуються конкретного програмного етапу. Наприклад, всі витрати, пов'язані з проведенням семінару або збором опитувань, повинні бути деталізовані. Вкажіть назву заходу і додайте додаткові рядки для кожного окремого виду діяльності. Ілюстративними типами витрат у цій категорії є: оренда приміщення, закуски, транспорт, витратні матеріали, оренда обладнання тощо. У колонці одиниць введіть кількість одиниць. У колонці «Вартість одиниці» вкажіть вартість за одиницю, яка має відображати найкращу оцінку, яку ви можете надати. Примітки до бюджету: Будь ласка, поясніть витрати, перелічені в кожному заході, в детальних бюджетних примітках, включаючи інформацію про кількість учасників, характер і обґрунтування витрат. У примітках також необхідно пояснити, як було визначено вартість за одиницю (наприклад, на основі місцевого порівняльного аналізу, котирувань постачальників послуг або нещодавнього досвіду проведення подібних заходів).
A9: 3. Equipment - Include all equipment which will be rented, leased or purchased under the Project. Equipment is defined as any equipment, computer hardware or software, materials, goods and vehicles and associated services necessarily required for the implementation of the services, which the awardee cannot reasonably be expected to provide were it not for the Award, which are financed or provided in full or in part by FCDO for use by the awardee. Budget notes: Include equipment above development/purchase value of £500 or above with a useful life of at least one year. Explain purpose of the equipment and under which activities the equipment will be used. / 3. Обладнання - включає все обладнання, яке буде орендоване, взяте в лізинг або придбане в рамках Проєкту. Обладнання визначається як будь-яке обладнання, комп'ютерне обладнання або програмне забезпечення, матеріали, товари та транспортні засоби, а також пов'язані з ними послуги, необхідні для реалізації послуг, які не можуть бути надані переможцем, якби не грант, і які фінансуються або надаються повністю або частково FCDO для використання переможцем. Примітки до бюджету: Включити обладнання, вартість розробки/закупівлі якого перевищує 500 фунтів стерлінгів або вище, з терміном експлуатації не менше одного року. Поясніть призначення обладнання та в яких видах діяльності воно буде використовуватися.
A11: 4. Monitoring and Evaluation - Include here all costs related to Monitoring, Evaluation, Accountability, and Learning (MEAL) such as monitoring visits, surveys, feedback mechanism, baseline, mid-term and end-term project evaluations. Budget notes: Explain cost breakdown, locations, number of participants and MEAL staff involved, consultancy costs and rationale/need to the monitoring activity, e.g. to track progress, Key Performance Indicators (KPIs), assess service uptake, quality of services provided, conduct interviews with relevant stakeholders and/or focus group discussions, etc. / 4. Моніторинг та оцінка - включіть сюди всі витрати, пов'язані з Моніторингом, Оцінюванням, Підзвітністю і Навчанням (MEAL), такі як моніторингові візити, опитування, механізм зворотного зв'язку, базові, середньострокові та кінцеві оцінки проєкту. Примітки до бюджету: Поясніть розбивку витрат, місцезнаходження, кількість учасників та залученого персоналу MEAL, витрати на консультації та обґрунтування/потребу в моніторинговій діяльності, наприклад, для відстеження прогресу, ключових показників ефективності (KPIs), оцінки використання послуг, якості наданих послуг, проведення інтерв'ю з відповідними зацікавленими сторонами та/або обговорень у фокус-групах тощо.
A13: 5. Travel and Transportation - This covers activity staff travel costs including subsistence, fuel (petrol/diesel/autogas) for vehicles, etc. Illustrative cost types in this category include: lodging, subsistence (per diem), mileage, public transportation, etc. In the units column, enter the number of units (e.g. trips, km). In the rate column, specify the rate per unit. Budget Notes: Please note origin and destination in the budget. Please explain each cost listed for travel in detailed budget notes. Daily subsistence and lodging rates should be budgeted in accordance with the exchange rate stated in OANDA (www.oanda.com), and please note that these are not flat-rate costs and must be substantiated with receipts. / 5. Подорожі та Транспортні витрати - охоплює витрати на відрядження персоналу, включаючи добові, паливо (бензин/дизель/автогаз) для транспортних засобів тощо. Ілюстративні типи витрат у цій категорії включають: проживання, добові, пробіг, громадський транспорт тощо. У колонці «Одиниці виміру» введіть кількість одиниць (наприклад, поїздок, км). У колонці ставка вкажіть вартість за одиницю. Примітки до бюджету: Будь ласка, зазначте в бюджеті пункт відправлення та пункт призначення. Будь ласка, поясніть кожну витрату, зазначену для подорожей, у детальних бюджетних примітках. Добові витрати на проживання та харчування повинні бути закладені в бюджет відповідно до обмінного курсу, зазначеного в OANDA (www.oanda.com), і, будь ласка, зверніть увагу, що ці витрати не є фіксованими і повинні бути підтверджені квитанціями.
A15: 6. Sub-partners - include funds allocated to sub-grantees and break-down of activities as included in the SOW approved for the Grant. This section includes funds that will be allocated by issuing sub-grants to second-tier partners but do not include capacity building or other training/support provided by the Grantee to the sub-grantee. If sub-partners have already been selected, include each partner under this category and provide in the budget line the amount approved for each sub-partner. Budget notes: Provide details such as name or sub-grantees (if available), planned number of sub-grantees, locations, type of activities that the Sub-partners budget category will support. / 6. Суб-партнери - включають кошти, виділені суб-грантоотримувачам, та розбивку заходів, передбачених у затвердженому для гранту технічному завданні (SOW). Цей розділ включає кошти, які будуть розподілені шляхом видачі субгрантів партнерам другого рівня, але не включають розбудову потенціалу або інше навчання/підтримку, що надається грантоотримувачем субгрантерам. Якщо субпартнери вже обрані, включіть кожного партнера в цю категорію і вкажіть у бюджетному рядку суму, затверджену для кожного субпартнера. Примітки до бюджету: Надайте детальну інформацію, таку як назва субгрантерів (якщо можливо), запланована кількість субгрантерів, місцезнаходження, тип діяльності, яку буде підтримувати бюджетна категорія «Суб-партнери».
A17: 7. Other Direct Costs - This covers non-labour costs allocated to implementation of the grant activity Insert the type of cost; illustrative cost types in this category include: communications (telephone, fax, internet, etc.), reproduction and printing costs, bank charges, a software license, etc. In the units column, enter the number of units (for example, days or months). Allocate these costs in relation to other activities you may have. For example if you have another FCDO or donor-funded activity, you may not include 100% office rent for this budget or ongoing costs of day-to-day programmatic operations in this budget. In the rate column, specify the rate per unit. Budget Notes: Each expense entered requires justification in the budget notes. Should the funds be awarded, back-up documentation (such as a software subscription receipt or license) will be required. / 7. Інші прямі витрати - охоплюють витрати, не пов'язані з оплатою праці, що виділяються на реалізацію грантової діяльності. Вкажіть тип витрат; ілюстративні типи витрат у цій категорії включають: зв'язок (телефон, факс, інтернет тощо), витрати на друк, банківські збори, ліцензію на програмне забезпечення тощо. У колонці «Одиниці виміру» введіть кількість одиниць (наприклад, днів або місяців). Розподіліть ці витрати по відношенню до інших видів діяльності, які ви можете здійснювати. Наприклад, якщо у вас є інша діяльність, що фінансується за рахунок коштів FCDO або донорів, ви не можете включити в цей бюджет 100% орендної плати за офіс або поточні витрати на щоденні програмні операції. У колонці «Ставка» вкажіть ставку за одиницю. Примітки до бюджету: Кожна введена витрата вимагає обґрунтування в примітках до бюджету. Якщо кошти будуть виділені, необхідно буде надати підтверджуючу документацію (наприклад, квитанцію про підписку на програмне забезпечення або ліцензію).
A19: General Notes: / Загальні примітки:
A20: Currency: The grant amount should be prepared in UAH. The Grantee is responsible to manage currency fluctuations and will absorb any loss due to currency exchange fluctuations.. Any currency exchange gains must be reallocated to the project budget in consultation with Chemonics. / Валюта: Сума гранту повинна бути розрахована в гривнях. Грантоотримувач несе відповідальність за управління валютними коливаннями і покриває будь-які збитки, пов'язані з коливаннями валютних курсів. Будь-які прибутки від курсових різниць повинні бути перерозподілені до бюджету проекту за погодженням з компанією Кімонікс.
A21: VAT: All amounts should be inclusive of VAT (except for UK VAT which should not be included in the budget and should be added to the invoice when requesting payment) / ПДВ: Усі суми повинні включати ПДВ (за винятком ПДВ у Великобританії, який не включається до бюджету і додається до рахунку-фактури при запиті на оплату)
A22: 1.1. Detailed Budget (advances) / 1.1. Детальний бюджет (аванси)
A23: Please specify the required advance payments for each month (milestone) of implementation. Advance payment cannot be for more than (one) three-months’ worth of expenses or 25% of the grant value, or £50,000, whichever is less. / Будь ласка, вкажіть необхідні суми авансових платежів за кожен місяць (етап) реалізації. Аванс не може перевищувати витрати за (один)три місяці, 25% від суми гранту або £50 000 — залежно від того, яка сума менша.
A24: 2. Summary Budget / 2. Загальний бюджет
A25: NO INPUT NEEDED. The table will be automatically populated with data from the "Detailed Budget" tab. / НЕ ПОТРЕБУЄ ЗАПОВНЕННЯ. Таблиця буде автоматично заповнена даними з вкладки "Детальний бюджет".
A26: 3. Budget Summary by Milestones / 3. Загальний бюджет за Етапами
A27: Please provide a summary of expenditures by milestone in the table. The number of milestones should be specified along with the names of milestones to be provided. The total amount should match the Total Award Budget . / Будь ласка, надайте зведену інформацію про витрати за етапами у таблиці. Необхідно вказати кількість етапів та їхні назви. Загальна сума має відповідати загальному бюджету гранту.
A28: 4. Budget Modification / 4. Модифікація бюджету
A29: To prepare and submit a budget modification, the Grantee will start by providing on the left side of the template the current approved budget as included in the Original Grant Agreement or latest Grant Agreement Modification signed. The Grantee will provide the most updated expenditure to date, remaining budget balance and in the right side of the template and will complete details for the modified budget. In case on no cost extensions, the total of the modification budget should match the total of the balance budget amount. / Щоб підготувати та подати зміни до бюджету, грантоотримувач повинен спочатку вказати в лівій частині шаблону поточний затверджений бюджет, включений в оригінальну грантову угоду або в останню підписану модифікацію грантової угоди. У правій частині шаблону грантоотримувач надає найновішу інформацію про витрати на сьогоднішній день, залишок бюджету, а також заповнює деталі зміненого бюджету. У випадку відсутності продовження витрат, загальна сума модифікованого бюджету повинна відповідати загальній сумі залишку бюджету.
A30: 5. Modified Summary Budget / 5. Модифікований Загальний бюджет
A31: The table will be automatically populated with data from the "Modified Budget" tab. / Таблиця буде автоматично заповнена даними з вкладки "Модифікований бюджет".
A32: 6. Modified Budget Summary by Milestones / 6. Модифікований Загальний бюджет за етапами
A33: Please specify the actual costs incurred up to the date of the modification, in accordance with the submitted financial reports. / Потрібно зазначити фактичні витрати, понесені до моменту модифікації, відповідно до поданих фінансових звітів.

Sheet Detailed Budget Example
C4: Organisation name:
C5: Project title
C6: Country
C7: Award application/Reference no.
C8: Project Start Date
C9: Project End date
C10: Total Grant Approved Budget (Chemonics Obligated amount) | D10: =H87 -> 811,000.00
A15: Original Budget
A16: Line Item | I16: Budget Notes - each budget line item must be described in detail The notes should explain: 1) why a particular item/service/human resource is needed to achieve the objectives of the grant and 2) how the unit costs/rates have been calculated (e.g. based on quotes, market research, etc). For Staff engaged in the project (under Section 1) please indicate roles and responsibilities. See Tab 01 for more guidance.
D17: Duration (n. of months) | E17: N of staff | F17: LOE, % | G17: Salary/Rate | H17: Total Award Budget
A20: 1 | B20: Personnel | I20: Personnel (The employment arrangement may take different forms, including under a civil law agreement or as a Private entrepreneur) | J20: *БВП - "Буде визначено пізніше"
B21: 1.1 Project manager, Shevchenko O. / Керівник проєкту Шевченко О. | D21: 6 | E21: 1 | F21: 100% | G21: 40,000.00 | H21: =G21*E21*D21*F21 -> 240,000.00 | I21: Project manager will be contracted under a civil law agreement (please don't forget to include all required taxes) Scope of work: General management of the project; Project planning, implementation of all activities; Communication with partners; Reporting. Preparation of a descriptive report; Implementation of project monitoring, improvement and sustainability measures. The salary rate is justified based on the previous contract for similar services ( attached). / Керівник проєкту буде найнятий за цивільно-правовою угодою (будь ласка, не забудьте включити всі необхідні податки) Перелік обов"язків: Загальне керівництво проєктом; Планування проєкту, реалізація всіх заходів; Комунікація з партнерами; Звітність. Підготовка описового звіту; Впровадження заходів з моніторингу, покращення та сталого розвитку проєкту. Рівень заробітної плати підтверджується на основі попереднього контракту на аналогічні послуги (додається).
B22: 1.2 Project Coordinator, PE, 2 persons, TBD / Координатор проєкту, ФОП, 2 особи, БВП* | D22: 6 | E22: 2 | F22: 75% | G22: 30,000.00 | H22: =D22*E22*F22*G22 -> 270,000.00 | I22: 2 Project Coordinators will be contracted as Private Enterpreneurs (PE). Scope of work:Support project planning; Project coordination, implementation of activities; Monitor progress; Risks mitigation; Organize events. The salary rate is budgeted based on the market rates research results for similar services / established salary for this position. / 2 Координатори проєкту будуть найняті як фізичні особи - підприємці (ФОП). Перелік обов"язків: Підтримка планування проєкту; Координація проєкту, реалізація заходів; Моніторинг прогресу; Зниження ризиків; Організація заходів. Розмір заробітної плати забюджетований на основі результатів дослідження ринкових ставок на аналогічні послуги / штатний оклад на цю позицію.
B23: 1.3 Accountant, TBD / Бухгалтер, БВП | D23: 5 | E23: 1 | F23: 50% | G23: 25,000.00 | H23: =D23*E23*F23*G23 -> 62,500.00 | I23: Accountant will be contracted under a civil law agreement (please don't forget to include all required taxes) Scope of work: Project accounting; Reporting of financial issues The salary rate is budgeted based on the market rates research results for similar services / established salary for this position. / Бухгалтер буде найнятий за цивільно-правовою угодою (будь ласка, не забудьте включити всі необхідні податки) Перелік обов"язків: Бухгалтерський облік проєкту; Звітність з фінансових питань Розмір заробітної плати забюджетований на основі результатів дослідження ринкових ставок на аналогічні послуги / штатний оклад на цю позицію.
A25: Sub-Total Personnel | H25: =SUM(H21:H23) -> 572,500.00
A28: 2 | B28: Activities | D28: Unit Description (per item, per hour, per day, per ticket, per person, per night, lump sum, per service, etc.) | F28: No of Units | G28: Cost per Unit | H28: Total | I28: Activities
B30: 2.1 | C30: Workshop 1 | H30: =D30*E30*F30*G30 -> 0
B31: 2.1.1 Training Venue Rental / Оренда місця проведення тренінгу | D31: day / день | F31: 3 | G31: 2,400.00 | H31: =F31*G31 -> 7,200.00 | I31: Training venue rental is needed for 3 days to conduct training course on "Culture and Identity" in Kyiv. Total number of participants is 20. Price is UAH 2,400.00 per day (8 hours per day). The cost is justified based on the lease agreement / the market rates (link to the website) / screenshot / commercial offer from the potential service provider. / Оренда приміщення необхідна на 3 дні для проведення курсу «Культура та ідентичність» у Києві. Кількість учасників - 20. Вартість -2,400.00 грн за день (8 годин на день). Вартість підтверджується договором оренди / ринковими цінами (посилання на сайт) / скріншот / комерційною пропозицією від потенційного постачальника послуг.
B32: 2.1.2 Food (Lunch + 2 coffee breaks) / Харчування (Обід + 2 кава паузи) | D32: per person / за особу | F32: =20*3 -> 60 | G32: 520.00 | H32: 31,200.00 | I32: 20 participants will be provided with 1 lunch and 2 coffee breaks per day during the 3-days training. Price is UAH 520.00 per person per day ( UAH 220.00/lunch + 2*UAH 150.00/coffee break), UAH 520.00 * 20 persons * 3 days The cost is justified based on the market rates (link to the website) / screenshot / commercial offer from the potential service provider. / 20 учасникам буде забезпечено 1 обід та 2 кава-брейки на день протягом 3-денного тренінгу. Вартість - 520,00 грн. за особу на день (220,00 грн./обід + 2*150,00 грн./кава-пауза), 520,00 грн. * 20 осіб * 3 дні Вартість підтверджується ринковими цінами (посилання на сайт) / скріншот / комерційною пропозицією від потенційного постачальника послуг.
B33: 2.1.3 Lodging / Проживання | D33: per night / за ніч | F33: =4*4 -> 16 | G33: 2,000.00 | H33: 32,000.00 | I33: Out of 20 participants, approximately 4 persons will be traveling to Kyiv and will require hotel accommodation for 4 nights, 1 night - UAH 2,000.00 (Note: tourist tax won't be reimbursed) The cost is justified based on the market rates (link to the website) / screenshot / commercial offer from the potential service provider. / З-поміж 20 учасників приблизно 4 особи подорожуватимуть до Києва і потребуватимуть проживання в готелі на 4 ночі, 1 ніч - 2,000.00 грн. (Примітка: туристичний збір не відшкодовується) Вартість підтверджується ринковими цінами (посилання на сайт) / скріншот / комерційною пропозицією від потенційного постачальника послуг.
B34: 2.1.4 Transportation / Транспорт | D34: per ticket / за квиток | F34: =4*2 -> 8 | G34: 800.00 | H34: 6,400.00 | I34: Transportation of 4 participants from Kharkiv to Kyiv and back by train, 4 persons *2 tickets per person. Price is UAH 800.00 per ticket (one-way). The cost is justified based on the market rates (link to the website) / screenshot / commercial offer from the potential service provider. / Перевезення 4 учасників із Харкова до Києва і назад потягомб 4 особи * 2 квитки на особу. Вартість - 800.00 грн.за квиток (в одну сторону). Вартість підтверджується ринковими цінами (посилання на сайт) / скріншот / комерційною пропозицією від потенційного постачальника послуг.
B35: 2.1.5 Training Supplies (Stationary, Flip charts, markers, etc.) / Навчальні матеріали (канцелярське приладдя, фліпчарти, маркери тощо) | D35: lump sum / загальна сума | F35: 1 | G35: 500.00 | H35: 500.00 | I35: Block of paper 2x3 for flip chart A1 30 sheets - 1 pc., Flip chart - 1 pc., pen - 20 pcs, notebook - 20 pcs., Marker - 1 set of 3 pcs. The cost is justified based on the market rates (link to the website) / screenshot of the basket / commercial offer from the potential service provider. / Блок паперу 2х3 для фліпчарту A1 30 аркушів - 1 шт., фліп чарт - 1 шт., ручка - 20 шт., блокноти - 20 шт., маркер - 1 набір з 3 шт. Вартість підтверджується ринковими цінами (посилання на сайт) / скріншот кошика / комерційною пропозицією від потенційного постачальника послуг.
H36: =F36*G36 -> 0
H37: =F37*G37 -> 0
A38: Sub-Total For Activity | H38: =SUM(H29:H37) -> 77,300.00
B40: 2.2 | C40: Workshop 2 | H40: =F40*G40 -> 0
B41: 2.2 Training Venue Rental / Оренда місця проведення тренінгу | D41: hour / година | F41: 8 | G41: 500.00 | H41: 4,000.00 | I41: Training venue rental is needed for 8 hours to conduct 1-day training "Culture and Identity" for 20 persons in Dnipro. Price is UAH 500.00 per hour. The cost is justified based on the lease agreement / the market rates (link to the website) / screenshot / commercial offer from the potential service provider. / Оренда приміщення необхідна на 8 годин для проведення одноденного тренінгу «Культура та ідентичність» для 20 осіб у Дніпрі. Вартість - 500,00 грн за годину. Вартість підтверджується договором оренди / ринковими цінами (посилання на сайт) / скріншот / комерційною пропозицією від потенційного постачальника послуг.
H42: 0
H43: 0
A44: Sub-Total For Activity | H44: =SUM(H39:H43) -> 4,000.00
A47: Sub-Total Activity Costs | H47: =SUM(H38+H44) -> 81,300.00
A49: 3 | B49: Equipment | D49: Unit Description | F49: No of Units | G49: Cost per Unit | H49: Total | I49: Equipment
H50: =F50*G50 -> 0
B51: 3.1 Tablets / Планшети | D51: item / одиниця | F51: 4 | G51: 250.00 | H51: 1,000.00 | I51: Tablets are required to enable the project team to effectively coordinate the implementation of the activity. The cost is justified based on market rates (link to the website / screenshot) / commercial offer from the potential vendor (attached) / Планшети необхідні для того, щоб команда проєкту могла ефективно координувати реалізацію діяльності Вартість підтверджується ринковими цінами (посилання на вебсайт / скріншот) / комерційна пропозиція від потенційного постачальника (додається) | J51: Prohibition on Certain Telecommunications Services or Equipment. The Grantee must comply fully with the prohibition on procuring certain telecommunications equipment and services, including, but not limited to, phones, tablets, laptops, cameras, internet, and cloud servers produced or provided by Huawei Technologies Company, ZTE Corporation, Hytera Communications Corporation, Hangzhou Hikvision Digital Technology Company, or Dahua Technology Company (or any subsidiary or affiliate of such entities). If the Grantee uses any FCDO grants funds to procure such equipment, Chemonics reserves the right to refuse reimbursement or seek repayment from the Grantee for the procurement.
B52: 3.2 Headphones / Навушники | D52: item / одиниця | F52: 4 | G52: 300.00 | H52: 1,200.00 | I52: Headphones are need to allow the comfortable listening to audio content by the audience. The cost is justified based on market rates (link to the website / screenshot) / commercial offer from the potential vendor (attached) / Навушники необхідні для комфортного прослуховування аудіоконтенту аудиторією. Вартість підтверджується ринковими цінами (посилання на вебсайт / скріншот) / комерційна пропозиція від потенційного постачальника (додається)
H53: 0
A54: Sub-Total Equipment | H54: =SUM(H50:H53) -> 2,200.00
A57: 4 | B57: Monitoring, Evaluation and Learning | D57: Unit Description | F57: No of Units | G57: Cost per Unit | H57: Total | I57: Monitoring, Evaluation and Learning
H58: =F58*G58 -> 0
B59: 4.1 M&E expert, Franko Olha (Optional budget line) | D59: hour / година | E59: 120 | F59: 30 | G59: 500.00 | H59: 15,000.00 | I59: Ensuring the collection and recording of project results, and control over project implementation. Roles and responsibilities: Preparation of descriptive reports within the framework of the project, collection of supporting documents. Employment in the project 30 hours (10 hours per month * 3 months). Cost 500.00 UAH per hour. The hourly rate is justified based on previous contract (attached) / Забезпечення збору та реєстрації результатів проекту, а також контроль за реалізацією проекту. Ролі та обов'язки: Підготовка описових звітів в рамках проекту, збір супровідних документів. Зайнятість в проекті 30 годин (10 годин на місяць * 3 місяці) . Вартість 500.00 грн за годину. Погодинна ставка підтверджується на основі попереднього договору (додається)
H60: 0
H61: 0
A62: Sub-Total Monitoring, Evaluation and Learning | H62: =SUM(H58:H61) -> 15,000.00
A64: 5 | B64: Travel and Transportation | D64: Unit Description | F64: No of Units | G64: Cost per Unit | H64: Total | I64: Travel and Transportation
H65: =F65*G65 -> 0
B66: 5.1 Accommodation / Проживання | D66: per night / за ніч | F66: =12*2 -> 24 | G66: 1,000.00 | H66: 24,000.00 | I66: Hotel in Kyiv, 2 nights for 12 persons. 1 night - UAH 1,000.00 (Note: tourist tax won't be reimbursed) The cost is justified based on the market rates (link to the website) / screenshot / commercial offer from the potential service provider. / Готель у Києві, 2 ночі на 12 осіб. 1 ніч - 1,000.00 грн ((Примітка: туристичний збір не відшкодовується) Вартість підтверджується ринковими цінами (посилання на сайт) / скріншот / комерційною пропозицією від потенційного постачальника послуг.
B67: 5.2 Transport / Транспорт | D67: per person / за особу | F67: =12 -> 12 | G67: 2,000.00 | H67: 24,000.00 | I67: Transportation of 12 participants from Zaporizhzhia to Kyiv and back by train. Price is UAH 2,000.00 for round trip. The cost is justified based on the market rates (link to the website) / screenshot / commercial offer from the potential service provider. / Перевезення 12 учасників із Запоріжжя до Києва і назад потягом. Вартість - 2,000.00 грн. в обидва боки. Вартість підтверджується ринковими цінами (посилання на сайт) / скріншот / комерційною пропозицією від потенційного постачальника послуг.
H68: 0
A69: Sub-Total, Travel and Transportation | H69: =SUM(H65:H68) -> 48,000.00
A71: 6 | B71: Sub-partners (activities delivered by third parties contracted by the grantee) | D71: Unit Description | F71: No of Units | G71: Cost per Unit | H71: Total | I71: Sub-partners
H72: =F72*G72 -> 0
B73: 6.1 Sub-grants (Optional budget line) | D73: lump sum / загальна сума | F73: 1 | G73: 50,000.00 | H73: 50,000.00 | I73: Sub-grant for pilot project of the chosen training program participant / Субгрант на пілотний проект обраного учасника навчальної програми
B74: 6.2 | H74: 0
H75: 0
A76: Sub-Total Sub-partners | H76: =SUM(H72:H75) -> 50,000.00
A78: 7 | B78: Other Direct Costs | D78: Unit Description | F78: No of Units | G78: Cost per Unit | H78: Total | I78: Other Direct Costs
H79: =F79*G79 -> 0
B80: 7.1 Office supplies, stationary for project team / Офісне приладдя, канцелярське приладдя для проєктної команди | D80: month / місяць | F80: 6 | G80: 1,000.00 | H80: 6,000.00 | I80: Folder - recorder A4 - 3 pcs., Block of paper 2x3 for flip chart A1 30 sheets - 1 pc., Office paper "Xerox Business" A3 80 g/m2 500 sheets - 1 pcs., Marker Centropen Fax set - 3 pc. * 6 months. The cost is justified based on the market rates (link to the website) / screenshot of the basket / commercial offer from the potential service provider. / Папка - реєстратор А4 - 3 шт., Блок паперу 2х3 для фліпчарту A1 30 аркушів - 1 шт., Папір офісний "Xerox Business" A3 80 г/м2 500 аркушів -1 шт, Маркер Centropen Fax набір - 3 шт. * 6 місяців. Вартість підтверджується ринковими цінами (посилання на сайт) / скріншот кошика / комерційною пропозицією від потенційного постачальника послуг.
B81: 7.2 Office rent / Оренда офісу | D81: month / місяць | F81: 6 | G81: 6,000.00 | H81: 36,000.00 | I81: 60% of the cost of renting the organization's office. 40% will be covered by XXX project (calculation is attached) The cost is justified based on the lease agreement / market rates / commercial offer from the potential service provider. / 60% витрат на оренду офісу організації. 40% буде покриватись XXX проєктом (розрахунок додається) Вартість підтверджується говором оренди / ринковими цінами / комерційною пропозицією від потенційного постачальника послуг.
H82: 0
A83: Sub-Total, Other Direct Costs | H83: =SUM(H79:H82) -> 42,000.00
A85: Grant Total | H85: =SUM(H83+H76+H69+H62+H54+H47+H25) -> 811,000.00
A87: Grand Total Obligated amount to Grantee | H87: =H85 -> 811,000.00

Sheet 1. Detailed Budget
C4: Organisation name:
C5: Project title
C6: Country
C7: Award application/Reference no.
C8: Project Start Date
C9: Project End date
C10: Total Grant Approved Budget (Chemonics Obligated amount)
A15: Original Budget
A16: Line Item | I16: Budget Notes - each budget line item must be described in detail The notes should explain: 1) why a particular item/service/human resource is needed to achieve the objectives of the grant and 2) how the unit costs/rates have been calculated (e.g. based on quotes, market research, etc). For Staff engaged in the project (under Section 1) please indicate roles and responsibilities. See Tab 01 for more guidance.
D17: Duration (n. of months) | E17: N of staff | F17: LOE, % | G17: Salary/Rate | H17: Total Award Budget
A20: 1 | B20: Personnel | I20: Personnel
B21: 1.1 Position Title, number of staff in this position | H21: =G21*E21*D21*F21 -> 0
B22: 1.2 Position Title, number of staff in this position | H22: =D22*E22*F22*G22 -> 0
B23: 1.3 Position Title, number of staff in this position | H23: =D23*E23*F23*G23 -> 0
B24: 1.4 Position Title, number of staff in this position | H24: =D24*E24*F24*G24 -> 0
B28: Sub-Total Personnel | H28: =SUM(H21:H27) -> 0
A31: 2 | B31: Activities | D31: Unit Description | F31: No of Units | G31: Cost per Unit | H31: Total | I31: Activities
B33: 2.1 Workshop 1
B34: 2.1.1 Training Venue Rental | H34: =F34*G34 -> 0
B35: 2.1.2 Food | H35: 0
B36: 2.1.3 Lodging | H36: 0
B37: 2.1.4 Transportation | H37: 0
B39: Sub-Total For Activity | H39: =SUM(H34:H38) -> 0
B41: 2.2 Workshop 2 | H41: =F41*G41 -> 0
B42: 2.2.1 Training Venue Rental | H42: 0
B43: 2.2.2 Food | H43: 0
B44: 2.2.3 Lodging | H44: 0
B45: 2.2.4 Transportation | H45: 0
B46: 2.2.5 Training Supplies (Stationary, Flip charts, markers, etc.) | H46: 0
B47: 2.2.6 Equipment Rental | H47: 0
B49: Sub-Total For Activity | H49: =SUM(H41:H48) -> 0
B52: Sub-Total Activity Costs | H52: =SUM(H39+H49) -> 0
A54: 3 | B54: Equipment | D54: Unit Description | F54: No of Units | G54: Cost per Unit | H54: Total | I54: Equipment
H55: =F55*G55 -> 0
B56: 3.1 | H56: 0
B57: 3.2 | H57: 0
B58: 3.3 | H58: 0
B59: 3.4 | H59: 0
B61: Sub-Total Equipment | H61: =SUM(H55:H60) -> 0
A64: 4 | B64: Monitoring, Evaluation and Learning | D64: Unit Description | F64: No of Units | G64: Cost per Unit | H64: Total | I64: Monitoring, Evaluation and Learning
H65: =F65*G65 -> 0
B66: 4.1 | H66: 0
B67: 4.2 | H67: 0
B68: 4.3 | H68: 0
B69: 4.4 | H69: 0
B71: Sub-Total Monitoring, Evaluation and Learning | H71: =SUM(H65:H70) -> 0
A73: 5 | B73: Travel and Transportation | D73: Unit Description | F73: No of Units | G73: Cost per Unit | H73: Total | I73: Travel and Transportation
H74: =F74*G74 -> 0
B75: 5.1 | H75: 0
B76: 5.2 | H76: 0
B77: 5.3 | H77: 0
B78: 5.4 | H78: 0
B80: Sub-Total, Travel and Transportation | H80: =SUM(H74:H79) -> 0
A82: 6 | B82: Sub-partners (activities delivered by third parties contracted by the grantee) | D82: Unit Description | F82: No of Units | G82: Cost per Unit | H82: Total | I82: Sub-partners
H83: =F83*G83 -> 0
B84: 6.1 | H84: 0
B85: 6.2 | H85: 0
B86: 6.3 | H86: 0
B87: 6.4 | H87: 0
B89: Sub-Total Sub-partners | H89: =SUM(H83:H88) -> 0
A91: 7 | B91: Other Direct Costs | D91: Unit Description | F91: No of Units | G91: Cost per Unit | H91: Total | I91: Other Direct Costs
H92: =F92*G92 -> 0
B93: 7.1 | H93: 0
B94: 7.2 | H94: 0
B95: 7.3 | H95: 0
B96: 7.4 | H96: 0
B97: 7.5 | H97: 0
B98: 7.6 | H98: 0
B99: 7.7 | H99: 0
B100: 7.8 | H100: 0
B101: 7.9 | H101: 0
B103: Sub-Total, Other Direct Costs | H103: =SUM(H92:H102) -> 0
A105: Grant Total | H105: =SUM(H103+H89+H80+H71+H61+H52+H28) -> 0
A107: Grand Total Obligated amount to Grantee | H107: =H105 -> 0

Sheet 1.1. Detailed Budget (advances)
C4: Organisation name:
C5: Project title
C6: Country
C7: Award application/Reference no.
C8: Project Start Date
C9: Project End date
C10: Total Grant Approved Budget (Chemonics Obligated amount) | D10: =H112 -> 0
A15: Original Budget | K15: Forecast
A16: Line Item | I16: Budget Notes - each budget line item must be described in detail The notes should explain: 1) why a particular item/service/human resource is needed to achieve the objectives of the grant and 2) how the unit costs/rates have been calculated (e.g. based on quotes, market research, etc). For Staff engaged in the project (under Section 1) please indicate roles and responsibilities. See Tab 01 for more guidance. | K16: Month 1 | L16: Month 2 | M16: Month 3 | N16: Month 4 | O16: Month 5 | P16: Month 6 | Q16: Month 7 | R16: Month 8 | S16: Month 9 | T16: Month 10 | U16: Month 11 | V16: Month 12 | W16: Total
D17: Duration (n. of months) | E17: N of staff | F17: LOE,% | G17: Salary/Rate | H17: Total Award Budget | X17: check
A20: 1 | B20: Personnel | I20: Personnel
B21: 1.1 Position Title, number of staff in this position | H21: =D21*E21*F21*G21 -> 0 | W21: =K21+L21+M21+N21+O21+P21+Q21+R21+S21+T21+U21+V21 -> 0 | X21: =H21-W21 -> 0
B22: 1.2 Position Title, number of staff in this position | H22: =D22*E22*F22*G22 -> 0 | W22: =K22+L22+M22+N22+O22+P22+Q22+R22+S22+T22+U22+V22 -> 0 | X22: =H22-W22 -> 0
B23: 1.3 Position Title, number of staff in this position | H23: 0 | W23: 0 | X23: =H23-W23 -> 0
B24: 1.4 Position Title, number of staff in this position | H24: 0 | W24: 0 | X24: 0
C25: Position Title, number of staff in this position
C26: Position Title, number of staff in this position
C27: Position Title, number of staff in this position
C28: Position Title, number of staff in this position
B33: Sub-Total Personnel | H33: =SUM(H21:H32) -> 0 | W33: =SUM(W21:W32) -> 0
A36: 2 | B36: Activities | D36: Unit Description | F36: No of Units | G36: Cost per Unit | I36: Activities
B38: 2.1 Workshop 1
B39: 2.1.1 Training Venue Rental | H39: =F39*G39 -> 0 | W39: =K39+L39+M39+N39+O39+P39+Q39+R39+S39+T39+U39+V39 -> 0 | X39: =H39-W39 -> 0
B40: 2.1.2 Food | H40: 0 | W40: 0 | X40: 0
B41: 2.1.3 Lodging | H41: 0 | W41: 0 | X41: 0
B42: 2.1.4 Transportation | H42: 0 | W42: 0 | X42: 0
B44: Sub-Total For Activity | H44: =SUM(H38:H43) -> 0 | W44: =SUM(W37:W43) -> 0
B46: 2.2 Workshop 2
B47: 2.2.1 Training Venue Rental | H47: =F47*G47 -> 0 | W47: =K47+L47+M47+N47+O47+P47+Q47+R47+S47+T47+U47+V47 -> 0 | X47: =H47-W47 -> 0
B48: 2.2.2 Food | H48: 0 | W48: 0 | X48: =H48-W48 -> 0
B49: 2.2.3 Lodging | H49: 0 | W49: 0 | X49: 0
B50: 2.2.4 Transportation | H50: 0 | W50: 0 | X50: 0
B51: 2.2.5 Training Supplies (Stationary, Flip charts, markers, etc.) | H51: 0 | W51: 0 | X51: 0
B52: 2.2.6 Equipment Rental | H52: 0 | W52: 0 | X52: 0
B54: Sub-Total For Activity | H54: =SUM(H46:H53) -> 0 | W54: =SUM(W46:W53) -> 0
B57: Sub-Total Activity Costs | W57: =W44+W54 -> 0
A59: 3 | B59: Equipment | D59: Unit Description | F59: No of Units | G59: Cost per Unit | I59: Equipment
B61: 3.1 | H61: =F61*G61 -> 0 | W61: =K61+L61+M61+N61+O61+P61+Q61+R61+S61+T61+U61+V61 -> 0 | X61: =H61-W61 -> 0
B62: 3.2 | H62: 0 | W62: 0 | X62: =H62-W62 -> 0
B63: 3.3 | H63: 0 | W63: 0 | X63: 0
B64: 3.4 | H64: 0 | W64: 0 | X64: 0
B66: Sub-Total Equipment | H66: =SUM(H61:H65) -> 0 | W66: =SUM(W60:W65) -> 0
A69: 4 | B69: Monitoring, Evaluation and Learning | D69: Unit Description | F69: No of Units | G69: Cost per Unit | I69: Monitoring, Evaluation & Learning
B71: 4.1 | H71: =F71*G71 -> 0 | W71: =K71+L71+M71+N71+O71+P71+Q71+R71+S71+T71+U71+V71 -> 0 | X71: =H71-W71 -> 0
B72: 4.2 | H72: 0 | W72: 0 | X72: =H72-W72 -> 0
B73: 4.3 | H73: 0 | W73: 0 | X73: 0
B74: 4.4 | H74: 0 | W74: 0 | X74: 0
B76: Sub-Total Monitoring, Evaluation and Learning | H76: =SUM(H71:H75) -> 0 | W76: =SUM(W70:W75) -> 0
A78: 5 | B78: Travel and Transportation | D78: Unit Description | F78: No of Units | G78: Cost per Unit | I78: Travel and Transportation
B80: 5.1 | H80: =F80*G80 -> 0 | W80: =K80+L80+M80+N80+O80+P80+Q80+R80+S80+T80+U80+V80 -> 0 | X80: =H80-W80 -> 0
B81: 5.2 | H81: 0 | W81: 0 | X81: =H81-W81 -> 0
B82: 5.3 | H82: 0 | W82: 0 | X82: 0
B83: 5.4 | H83: 0 | W83: 0 | X83: 0
B85: Sub-Total, Travel and Transportation | H85: =SUM(H79:H84) -> 0 | W85: =SUM(W79:W84) -> 0
A87: 6 | B87: Sub-partners (activities delivered by third parties contracted by the grantee) | D87: Unit Description | F87: No of Units | G87: Cost per Unit | I87: Sub-partners
B89: 6.1 | H89: =F89*G89 -> 0 | W89: =K89+L89+M89+N89+O89+P89+Q89+R89+S89+T89+U89+V89 -> 0 | X89: =H89-W89 -> 0
B90: 6.2 | H90: 0 | W90: 0 | X90: =H90-W90 -> 0
B91: 6.3 | H91: 0 | W91: 0 | X91: 0
B92: 6.4 | H92: 0 | W92: 0 | X92: 0
B94: Sub-Total Sub-partners | H94: =SUM(H88:H93) -> 0 | W94: =SUM(W88:W93) -> 0
A96: 7 | B96: Other Direct Costs | D96: Unit Description | F96: No of Units | G96: Cost per Unit | I96: Other Direct Costs
B98: 7.1 | H98: =F98*G98 -> 0 | W98: =K98+L98+M98+N98+O98+P98+Q98+R98+S98+T98+U98+V98 -> 0 | X98: =H98-W98 -> 0
B99: 7.2 | H99: 0 | W99: 0 | X99: =H99-W99 -> 0
B100: 7.3 | H100: 0 | W100: 0 | X100: 0
B101: 7.4 | H101: 0 | W101: 0 | X101: 0
B102: 7.5 | H102: 0 | W102: 0 | X102: 0
B103: 7.6 | H103: 0 | W103: 0 | X103: 0
B104: 7.7 | H104: 0 | W104: 0 | X104: 0
B105: 7.8 | H105: 0 | W105: 0 | X105: 0
B106: 7.9 | H106: 0 | W106: =K106+L106+M106+N106+O106+P106+Q106+R106+S106+T106+U106+V106 -> 0 | X106: =H106-W106 -> 0
B108: Sub-Total, Other Direct Costs | H108: =SUM(H98:H107) -> 0 | W108: =SUM(W97:W107) -> 0
A110: Grand Total | H110: =H108+H94+H85+H76+H66+H57+H33 -> 0 | W110: =W108+W94+W85+W76+W66+W57+W33 -> 0
A112: Grand Total Obligated amount to Grantee | H112: =H110 -> 0 | W112: =W110 -> 0

Sheet 2. Summary Budget
B2: Organisation name:
B3: Project title
B4: Country
B5: Award application/Reference no.
B6: Project Start Date
B7: Project End date
B8: Total Grant Approved Budget (Chemonics Obligated amount)
B11: Summary Budget | C11: Total Award Amount
B12: 1 Personnel | C12: ='1. Detailed Budget '!H28 -> 0
B13: 2 Activities | C13: ='1. Detailed Budget '!H52 -> 0
B14: 3 Equipment | C14: ='1. Detailed Budget '!H61 -> 0
B15: 4 Monitoring, Evaluation and Learning | C15: ='1. Detailed Budget '!H71 -> 0
B16: 5 Travel and Transportation | C16: ='1. Detailed Budget '!H80 -> 0
B17: 6 Sub-partners | C17: ='1. Detailed Budget '!H89 -> 0
B18: 7 Other Direct Costs | C18: ='1. Detailed Budget '!H103 -> 0
B19: Grand Total | C19: =SUM(C12:C18) -> 0

Sheet 3. Budget Summary by Milestone
B2: Organisation name:
B3: Project title
B4: Country
B5: Award application/Reference no.
B6: Project Start Date
B7: Project End date
B8: Total Grant Approved Budget (Chemonics Obligated amount)
A12: Budget Summary by Milestone
C13: Milestone 1 (name milestone) | D13: Milestone 2 (name milestone) | E13: Milestone 3 (name milestone) | F13: Milestone 4 (name milestone) | G13: Milestone 5 (name milestone) | H13: Total (should match Total Obligated amount) | J13: Do NOT include any in-kind contribution in the Budget by Milestone
A14: 1 | B14: Personnel | H14: =SUM(C14:G14) -> 0
A15: 2 | B15: Activities | H15: =SUM(C15:G15) -> 0
A16: 3 | B16: Equipment | H16: 0
A17: 4 | B17: M&E | H17: 0
A18: 5 | B18: Travel | H18: 0
A19: 6 | B19: Sub-partners | H19: 0
A20: 7 | B20: Other Direct Costs | H20: 0
B21: TOTAL | C21: =SUM(C14:C20) -> $0 | D21: =SUM(D14:D20) -> $0 | E21: =SUM(E14:E20) -> $0 | F21: =SUM(F14:F20) -> $0 | G21: =SUM(G14:G20) -> $0 | H21: =SUM(H14:H20) -> $0
G24: Check | H24: =C8-H21 -> 0
B25: =C20 -> 0
B27: =C22 -> 0

Sheet 4. Modified Budget
C4: Organisation name:
C5: Project title
C6: Country
C7: Award application/Reference no.
C8: Project Start Date
C9: Project End date
C10: Total Grant Approved Budget (Chemonics Obligated amount) | D10: =H107 -> 0
C11: Total Modified Grant Approved Budget (Chemonics Obligated amount) | D11: =U107 -> 0
A15: Original Budget | N15: Modification Budget
A16: Line Item | I16: Budget Notes - each budget line item must be described in detail The notes should explain: 1) why a particular item/service/human resource is needed to achieve the objectives of the grant and 2) how the unit costs/rates have been calculated (e.g. based on quotes, market research, etc). For Staff engaged in the project (under Section 1) please indicate roles and responsibilities. See Tab 01 for more guidance. | K16: Expenditure to date - UAH | L16: Budget balance -UAH | N16: Line Item | Q16: Duration (n. of months) | R16: N of staff | S16: LOE,% | T16: Salary/Rate | U16: Total Award Budget | V16: Budget Notes (Please explain the changes - increase/decrease per each budget adjustment)
D17: Duration (n. of months) | E17: N of staff | F17: LOE, % | G17: Salary/Rate | H17: Total Award Budget
A20: 1 | B20: Personnel | I20: Personnel | N20: 1 | O20: Personnel
B21: 1.1 Position Title, number of staff in this position | H21: =G21*E21*D21*F21 -> 0 | L21: =H21-K21 -> 0 | O21: 1.1 Position Title, number of staff in this position | U21: =T21*R21*Q21*S21 -> 0
B22: 1.2 Position Title, number of staff in this position | H22: =D22*E22*F22*G22 -> 0 | L22: =H22-K22 -> 0 | O22: 1.2 Position Title, number of staff in this position | U22: =Q22*R22*S22*T22 -> 0
B23: 1.3 Position Title, number of staff in this position | H23: =D23*E23*F23*G23 -> 0 | L23: =H23-K23 -> 0 | O23: 1.3 Position Title, number of staff in this position | U23: =Q23*R23*S23*T23 -> 0
B24: 1.4 Position Title, number of staff in this position | H24: =D24*E24*F24*G24 -> 0 | L24: 0 | O24: 1.4 Position Title, number of staff in this position | U24: =Q24*R24*S24*T24 -> 0
B28: Sub-Total Personnel | H28: =SUM(H21:H27) -> 0 | K28: =SUM(K21:K27) -> 0 | L28: =SUM(L21:L27) -> 0 | O28: Sub-Total Personnel | U28: =SUM(U21:U27) -> 0
A31: 2 | B31: Activities | D31: Unit Description | F31: No of Units | G31: Cost per Unit | H31: Total | I31: Activities | N31: 2 | O31: Activities | Q31: Unit Description | S31: No of Units | T31: Cost per Unit | U31: Total
B33: 2.1 Workshop 1 | O33: 2.1 Workshop 1
B34: 2.1.1 Training Venue Rental | H34: =F34*G34 -> 0 | L34: =H34-K34 -> 0 | O34: 2.1.1 Training Venue Rental | U34: =S34*T34 -> 0
B35: 2.1.2 Food | H35: 0 | L35: 0 | O35: 2.1.2 Food | U35: 0
B36: 2.1.3 Lodging | H36: 0 | L36: 0 | O36: 2.1.3 Lodging | U36: 0
B37: 2.1.4 Transportation | H37: 0 | L37: 0 | O37: 2.1.4 Transportation | U37: 0
B39: Sub-Total For Activity | H39: =SUM(H34:H38) -> 0 | K39: =SUM(K34:K38) -> 0 | L39: =SUM(L34:L38) -> 0 | O39: Sub-Total For Activity | U39: =SUM(U34:U38) -> 0
B41: 2.2 Workshop 2 | H41: =F41*G41 -> 0 | L41: =H41-K41 -> 0 | O41: 2.2 Workshop 2 | U41: =S41*T41 -> 0
B42: 2.2.1 Training Venue Rental | H42: 0 | L42: 0 | O42: 2.2.1 Training Venue Rental | U42: 0
B43: 2.2.2 Food | H43: 0 | L43: 0 | O43: 2.2.2 Food | U43: 0
B44: 2.2.3 Lodging | H44: 0 | L44: 0 | O44: 2.2.3 Lodging | U44: 0
B45: 2.2.4 Transportation | H45: 0 | L45: 0 | O45: 2.2.4 Transportation | U45: 0
B46: 2.2.5 Training Supplies (Stationary, Flip charts, markers, etc.) | H46: 0 | L46: 0 | O46: 2.2.5 Training Supplies (Stationary, Flip charts, markers, etc.) | U46: 0
B47: 2.2.6 Equipment Rental | H47: 0 | L47: 0 | O47: 2.2.6 Equipment Rental | U47: 0
B49: Sub-Total For Activity | H49: =SUM(H41:H48) -> 0 | K49: =SUM(K41:K48) -> 0 | L49: =SUM(L41:L48) -> 0 | O49: Sub-Total For Activity | U49: =SUM(U41:U48) -> 0
B52: Sub-Total Activity Costs | H52: =SUM(H39+H49) -> 0 | K52: =SUM(K39+K49) -> 0 | L52: =SUM(L39+L49) -> 0 | O52: Sub-Total Activity Costs | U52: =SUM(U39+U49) -> 0
A54: 3 | B54: Equipment | D54: Unit Description | F54: No of Units | G54: Cost per Unit | H54: Total | I54: Equipment | N54: 3 | O54: Equipment | Q54: Unit Description | S54: No of Units | T54: Cost per Unit | U54: Total
H55: =F55*G55 -> 0 | L55: =H55-K55 -> 0 | U55: =S55*T55 -> 0
B56: 3.1 | H56: 0 | L56: 0 | O56: 3.1 | U56: 0
B57: 3.2 | H57: 0 | L57: 0 | O57: 3.2 | U57: 0
B58: 3.3 | H58: 0 | L58: 0 | O58: 3.3 | U58: 0
B59: 3.4 | H59: 0 | L59: 0 | O59: 3.4 | U59: 0
B61: Sub-Total Equipment | H61: =SUM(H55:H60) -> 0 | K61: =SUM(K55:K60) -> 0 | L61: =SUM(L55:L60) -> 0 | O61: Sub-Total Equipment | U61: =SUM(U55:U60) -> 0
A64: 4 | B64: Monitoring, Evaluation and Learning | D64: Unit Description | F64: No of Units | G64: Cost per Unit | H64: Total | I64: Monitoring, Evaluation and Learning | N64: 4 | O64: Monitoring, Evaluation and Learning | Q64: Unit Description | S64: No of Units | T64: Cost per Unit | U64: Total
H65: =F65*G65 -> 0 | L65: =H65-K65 -> 0 | U65: =S65*T65 -> 0
B66: 4.1 | H66: 0 | L66: 0 | O66: 4.1 | U66: 0
B67: 4.2 | H67: 0 | L67: 0 | O67: 4.2 | U67: 0
B68: 4.3 | H68: 0 | L68: 0 | O68: 4.3 | U68: 0
B69: 4.4 | H69: 0 | L69: 0 | O69: 4.4 | U69: 0
B71: Sub-Total Monitoring, Evaluation and Learning | H71: =SUM(H65:H70) -> 0 | K71: =SUM(K65:K70) -> 0 | L71: =SUM(L65:L70) -> 0 | O71: Sub-Total Monitoring, Evaluation and Learning | U71: =SUM(U65:U70) -> 0
A73: 5 | B73: Travel and Transportation | D73: Unit Description | F73: No of Units | G73: Cost per Unit | H73: Total | I73: Travel and Transportation | N73: 5 | O73: Travel and Transportation | Q73: Unit Description | S73: No of Units | T73: Cost per Unit | U73: Total
H74: =F74*G74 -> 0 | L74: =H74-K74 -> 0 | U74: =S74*T74 -> 0
B75: 5.1 | H75: 0 | L75: 0 | O75: 5.1 | U75: 0
B76: 5.2 | H76: 0 | L76: 0 | O76: 5.2 | U76: 0
B77: 5.3 | H77: 0 | L77: 0 | O77: 5.3 | U77: 0
B78: 5.4 | H78: 0 | L78: 0 | O78: 5.4 | U78: 0
B80: Sub-Total, Travel and Transportation | H80: =SUM(H74:H79) -> 0 | K80: =SUM(K74:K79) -> 0 | L80: =SUM(L74:L79) -> 0 | O80: Sub-Total, Travel and Transportation | U80: =SUM(U74:U79) -> 0
A82: 6 | B82: Sub-partners (activities delivered by third parties contracted by the grantee) | D82: Unit Description | F82: No of Units | G82: Cost per Unit | H82: Total | I82: Sub-partners | N82: 6 | O82: Sub-partners (activities delivered by third parties contracted by the grantee) | Q82: Unit Description | S82: No of Units | T82: Cost per Unit | U82: Total
H83: =F83*G83 -> 0 | L83: =H83-K83 -> 0 | U83: =S83*T83 -> 0
B84: 6.1 | H84: 0 | L84: 0 | O84: 6.1 | U84: 0
B85: 6.2 | H85: 0 | L85: 0 | O85: 6.2 | U85: 0
B86: 6.3 | H86: 0 | L86: 0 | O86: 6.3 | U86: 0
B87: 6.4 | H87: 0 | L87: 0 | O87: 6.4 | U87: 0
B89: Sub-Total Sub-partners | H89: =SUM(H83:H88) -> 0 | K89: =SUM(K83:K88) -> 0 | L89: =SUM(L83:L88) -> 0 | O89: Sub-Total Sub-partners | U89: =SUM(U83:U88) -> 0
A91: 7 | B91: Other Direct Costs | D91: Unit Description | F91: No of Units | G91: Cost per Unit | H91: Total | I91: Other Direct Costs | N91: 7 | O91: Other Direct Costs | Q91: Unit Description | S91: No of Units | T91: Cost per Unit | U91: Total
H92: =F92*G92 -> 0 | L92: =H92-K92 -> 0 | U92: =S92*T92 -> 0
B93: 7.1 | H93: 0 | L93: 0 | O93: 7.1 | U93: 0
B94: 7.2 | H94: 0 | L94: 0 | O94: 7.2 | U94: 0
B95: 7.3 | H95: 0 | L95: 0 | O95: 7.3 | U95: 0
B96: 7.4 | H96: 0 | L96: 0 | O96: 7.4 | U96: 0
B97: 7.5 | H97: 0 | L97: 0 | O97: 7.5 | U97: 0
B98: 7.6 | H98: 0 | L98: 0 | O98: 7.6 | U98: 0
B99: 7.7 | H99: 0 | L99: 0 | O99: 7.7 | U99: 0
B100: 7.8 | H100: 0 | L100: 0 | O100: 7.8 | U100: 0
B101: 7.9 | H101: 0 | L101: 0 | O101: 7.9 | U101: 0
B103: Sub-Total, Other Direct Costs | H103: =SUM(H92:H102) -> 0 | K103: =SUM(K92:K102) -> 0 | L103: =SUM(L92:L102) -> 0 | O103: Sub-Total, Other Direct Costs | U103: =SUM(U92:U102) -> 0
A105: Grant Total | H105: =SUM(H103+H89+H80+H71+H61+H52+H28) -> 0 | K105: =SUM(K103+K89+K80+K71+K61+K52+K28) -> 0 | L105: =SUM(L103+L89+L80+L71+L61+L52+L28) -> 0 | N105: Grant Total | U105: =SUM(U103+U89+U80+U71+U61+U52+U28) -> 0
A107: Grand Total Obligated amount to Grantee | H107: =H105 -> 0 | K107: =K105 -> 0 | L107: =L105 -> 0 | N107: Grand Total Obligated amount to Grantee | U107: =U105 -> 0

Sheet 5. Modified Summary Budget
B2: Organisation name:
B3: Project title
B4: Country
B5: Award application/Reference no.
B6: Project Start Date
B7: Project End date
B8: Total Grant Approved Budget (Chemonics Obligated amount)
B11: Summary Budget | C11: Original budget | D11: Modified budget | E11: Difference
B12: 1 Personnel | C12: ='1. Detailed Budget '!H28 -> 0 | D12: ='4. Modified Budget '!U28 -> 0 | E12: =C12-D12 -> 0
B13: 2 Activities | C13: ='1. Detailed Budget '!H52 -> 0 | D13: ='4. Modified Budget '!U52 -> 0 | E13: =C13-D13 -> 0
B14: 3 Equipment | C14: ='1. Detailed Budget '!H61 -> 0 | D14: ='4. Modified Budget '!U61 -> 0 | E14: 0
B15: 4 Monitoring, Evaluation and Learning | C15: ='1. Detailed Budget '!H71 -> 0 | D15: ='4. Modified Budget '!U71 -> 0 | E15: 0
B16: 5 Travel and Transportation | C16: ='1. Detailed Budget '!H80 -> 0 | D16: ='4. Modified Budget '!U80 -> 0 | E16: 0
B17: 6 Sub-partners | C17: ='1. Detailed Budget '!H89 -> 0 | D17: ='4. Modified Budget '!U89 -> 0 | E17: 0
B18: 7 Other Direct Costs | C18: ='1. Detailed Budget '!H103 -> 0 | D18: ='4. Modified Budget '!U103 -> 0 | E18: 0
B19: Grand Total | C19: =SUM(C12:C18) -> 0 | D19: =SUM(D12:D18) -> 0 | E19: 0

Sheet 5 Budget Notes (hidden)
A3: Original Budget | C3: Modification Budget
A4: Budget Notes - each budget line item must be described in detail The notes should explain: 1) why a particular item/service/human resource is needed to achieve the objectives of the grant and 2) how the unit costs/rates have been calculated (e.g. based on quotes, market research, etc). For Staff engaged in the project (under Section 1) please indicate roles and responsibilities. See Tab 01 for more guidance. | C4: Budget Notes - each budget line item must be described in detail The notes should explain: 1) why a particular item/service/human resource is needed to achieve the objectives of the grant and 2) how the unit costs/rates have been calculated (e.g. based on quotes, market research, etc). For Staff engaged in the project (under Section 1) please indicate roles and responsibilities. See Tab 01 for more guidance.
A8: 1 Personnel | C8: 1 Personnel
A20: 2 Activities | C20: 2 Activities
A34: 3. Equipment | C34: 3. Equipment
A42: 4 Capital Expenditure | C42: 4 Capital Expenditure
A50: 5 Monitoring, Evaluation & Learning | C50: 5 Monitoring, Evaluation & Learning
A58: 6 Travel and Transportation | C58: 6 Travel and Transportation
A66: 7 Sub-partners | C66: 7 Sub-partners
A74: 8 Other Direct Costs | C74: 8 Other Direct Costs

Sheet 6. Mod Budget Summary by Miles
B2: Organisation name:
B3: Project title
B4: Country
B5: Award application/Reference no.
B6: Project Start Date
B7: Project End date
B8: Total Grant Approved Budget (Chemonics Obligated amount)
A12: Budget Summary by Milestone
C13: Milestone 1 (name milestone) | D13: Actuals Report 1 | E13: Milestone 2 (name milestone) | F13: Actuals Report 2 | G13: Milestone 3 (name milestone) | H13: Actuals Report 3 | I13: Milestone 4 (name milestone) | J13: Actuals Report 4 | K13: Milestone 5 (name milestone) | L13: Milestone 5 (Final reimbursement modified) | N13: Do NOT include any in-kind contribution in the Budget by Milestone | R13: Original Budget Total (should match Total Obligated amount) | S13: Modified Budget Total (should match Total Obligated amount) | T13: Difference | U13: Difference, %
A14: 1 | B14: Personnel | R14: =C14+E14+G14+I14+K14 -> 0 | S14: =D14+F14+H14+J14+L14 -> 0 | T14: =R14-S14 -> 0 | U14: =T14/R14 -> 
A15: 2 | B15: Activities | R15: =C15+E15+G15+I15+K15 -> 0 | S15: =D15+F15+H15+J15+L15 -> 0 | T15: =R15-S15 -> 0 | U15: =T15/R15 -> 
A16: 3 | B16: Equipment | R16: 0 | S16: =D16+F16+H16+J16+L16 -> 0 | T16: 0
A17: 4 | B17: M&E | R17: 0 | S17: =D17+F17+H17+J17+T19L17 -> 
A18: 5 | B18: Travel | R18: 0 | S18: =D18+F18+H18+J18+L18 -> 0 | T18: 0
A19: 6 | B19: Sub-partners | R19: 0 | S19: 0 | T19: 0
A20: 7 | B20: Other Direct Costs | R20: 0 | S20: 0 | T20: 0
B21: TOTAL | C21: =SUM(C14:C20) -> $0 | D21: =SUM(D14:D20) -> $0 | E21: $0 | F21: $0 | G21: $0 | H21: $0 | I21: =SUM(I14:I20) -> $0 | J21: =SUM(J14:J20) -> $0 | K21: =SUM(K14:K20) -> $0 | L21: =SUM(L14:L20) -> $0 | R21: =SUM(R14:R20) -> $0 | S21: =SUM(S14:S20) ->  | T21: =SUM(T14:T20) ->  | U21: =T21/R21 -> 
K24: Check | R24: ='1. Detailed Budget '!H107 -> 0 | S24: ='4. Modified Budget '!U107 -> 0
B25: =C20 -> 0 | L25: Formula | R25: =R21-R24 -> $0.00 | S25: =S21-S24 -> 
B27: =C22 -> 0
